Workbook

Sheet Variables
A1: Financial Variable Name | B1: Math Symbol | C1: Excel Function Argument
A2: Present Value | B2: PV | C2: PV
A3: Annual Rate (APR) | B3: i
A4: Compounding Periods per year | B4: n
A5: Years | B5: x
A6: Period Rate | B6: i/n | C6: rate
A7: Total Number of Periods | B7: x*n | C7: nper
A8: Periodic Payment | B8: PMT | C8: PMT
A9: Future Value | B9: FV | C9: FV
A10: Type of Annuity | C10: type
A12: >>>>>>>> | B12: Ordinary Annuity (End) | C12: Annuity Due (Begin)
A13: >>>>>>>> | B13: PMT made at end of period | C13: PMT made at begin of period
A14: Put into type argument for Excel Financial Functions >>> | B14: 0 or omitted | C14: 1
A16: Interest | B16: FV - PV | C16: FV - PV

Sheet FV Annuity End
A1: Periodic Payment | B1: PMT | C1: 50 | D1: PMT
A2: Years | B2: x | C2: 50
A3: # Compounding Periods per Year | B3: n | C3: 12
A4: Annual Interest Rate | B4: i | C4: 0.13
A5: Period Rate | B5: i/n | D5: rate
A6: Total Periods | B6: x*n | D6: nper
A7: Payment at end of each month | B7: type | C7: omitted
A8: Future Value | B8: FV = $ at Retirement | D8: =FV(rate , nper , -PMT)
B10: Check: | C10: =C1*((1+C4/C3)^(C2*C3)-1)/(C4/C3) -> 2959811.815 | D10: =ShowFormula -> =C1*((1+C4/C3)^(C2*C3)-1)/(C4/C3)
A12: Future Value | B12: FV | C12: 1000000
A13: Years | B13: x | C13: 35
A14: # Compounding Periods per Year | B14: n | C14: 12
A15: Annual Interest Rate | B15: i | C15: 0.13
A16: Period Rate | B16: i/n | D16: rate
A17: Total Periods | B17: x*n | D17: nper
A18: Payment at end of each month | B18: type | C18: omitted
A19: Periodic Payment | B19: PMT = Deposit $ to get $1m at Retirement | D19: =PMT(rate , nper , , FV)
B21: Check: | C21: =C12/(((1+C15/C14)^(C13*C14)-1)/(C15/C14)) -> 118.5980892 | D21: =ShowFormula -> =C12/(((1+C15/C14)^(C13*C14)-1)/(C15/C14))

Sheet FV Annuity End (an)
A1: Periodic Payment | B1: PMT | C1: 50 | D1: PMT
A2: Years | B2: x | C2: 50
A3: # Compounding Periods per Year | B3: n | C3: 12
A4: Annual Interest Rate | B4: i | C4: 0.08
A5: Period Rate | B5: i/n | C5: =C4/C3 -> 0.006666666667 | D5: rate
A6: Total Periods | B6: x*n | C6: =C2*C3 -> 600 | D6: nper
A7: Payment at end of each month | B7: type | C7: omitted
A8: Future Value | B8: FV = $ at Retirement | C8: =FV(C5,C6,-C1) -> 396586.3738 | D8: =FV(rate , nper , -PMT)
B9: Total Amount | C9: =C1*C6 -> 30000
B10: Check: | C10: =C1*((1+C4/C3)^(C2*C3)-1)/(C4/C3) -> 396586.3738 | D10: =ShowFormula -> =C1*((1+C4/C3)^(C2*C3)-1)/(C4/C3)
A12: Future Value | B12: FV | C12: 1000000
A13: Years | B13: x | C13: 35
A14: # Compounding Periods per Year | B14: n | C14: 12
A15: Annual Interest Rate | B15: i | C15: 0.13
A16: Period Rate | B16: i/n | C16: =C15/C14 -> 0.01083333333 | D16: rate
A17: Total Periods | B17: x*n | C17: =C13*C14 -> 420 | D17: nper
A18: Payment at end of each month | B18: type | C18: omitted
A19: Periodic Payment | B19: PMT = Deposit $ to get $1m at Retirement | C19: =PMT(C16,C17,,C12) -> -118.5980892 | D19: =PMT(rate , nper , , FV)
B21: Check: | C21: =C12/(((1+C15/C14)^(C13*C14)-1)/(C15/C14)) -> 118.5980892 | D21: =ShowFormula -> =C12/(((1+C15/C14)^(C13*C14)-1)/(C15/C14))

Sheet FV Annuity Begin
A1: Periodic Payment | B1: PMT | C1: 50 | D1: PMT
A2: Years | B2: Years | C2: 50
A3: # Compounding Periods per Year | B3: n | C3: 12
A4: Annual Interest Rate | B4: i | C4: 0.13
A5: Period Rate | B5: i/n | D5: rate
A6: Total Periods | B6: x*n | D6: nper
A7: Payment at beginning of each month | B7: type | C7: 1
A8: Future Value | B8: FV = $ at Retirement | D8: =FV(rate , nper , -PMT , , 1)
B10: Check: | C10: =C1*((1+C4/C3)^(C2*C3)-1)/(C4/C3)*(1+C4/C3) -> 2991876.443 | D10: =ShowFormula -> =C1*((1+C4/C3)^(C2*C3)-1)/(C4/C3)*(1+C4/C3)
A12: Future Value | B12: FV | C12: 1000000
A13: Years | B13: Years | C13: 35
A14: # Compounding Periods per Year | B14: n | C14: 12
A15: Annual Interest Rate | B15: i | C15: 0.13
A16: Period Rate | B16: i/n | D16: rate
A17: Total Periods | B17: x*n | D17: nper
A18: Payment at beginning of each month | B18: type | C18: 1
A19: Periodic Payment | B19: PMT = Deposit $ to get $1m at Retirement | D19: =PMT(rate , nper , , FV , 1)
B21: Check: | C21: =C12/(((1+C15/C14)^(C13*C14)-1)/(C15/C14))/(1+C15/C14) -> 117.3270462 | D21: =ShowFormula -> =C12/(((1+C15/C14)^(C13*C14)-1)/(C15/C14))/(1+C15/C14)

Sheet FV Annuity Begin (an)
A1: Periodic Payment | B1: PMT | C1: 50 | D1: PMT
A2: Years | B2: Years | C2: 50
A3: # Compounding Periods per Year | B3: n | C3: 12
A4: Annual Interest Rate | B4: i | C4: 0.08
A5: Period Rate | B5: i/n | C5: =C4/C3 -> 0.006666666667 | D5: rate
A6: Total Periods | B6: x*n | C6: =C2*C3 -> 600 | D6: nper
A7: Payment at beginning of each month | B7: type | C7: 1
A8: Future Value | B8: FV = $ at Retirement | C8: =FV(C5,C6,-C1,,1) -> 399230.283 | D8: =FV(rate , nper , -PMT , , 1)
B10: Check: | C10: =C1*((1+C4/C3)^(C2*C3)-1)/(C4/C3)*(1+C4/C3) -> 399230.283 | D10: =ShowFormula -> =C1*((1+C4/C3)^(C2*C3)-1)/(C4/C3)*(1+C4/C3)
A12: Future Value | B12: FV | C12: 1000000
A13: Years | B13: Years | C13: 35
A14: # Compounding Periods per Year | B14: n | C14: 12
A15: Annual Interest Rate | B15: i | C15: 0.13
A16: Period Rate | B16: i/n | C16: =C15/C14 -> 0.01083333333 | D16: rate
A17: Total Periods | B17: x*n | C17: =C13*C14 -> 420 | D17: nper
A18: Payment at beginning of each month | B18: type | C18: 1
A19: Periodic Payment | B19: PMT = Deposit $ to get $1m at Retirement | C19: =PMT(C16,C17,,C12,1) -> -117.3270462 | D19: =PMT(rate , nper , , FV , 1)
B21: Check: | C21: =C12/(((1+C15/C14)^(C13*C14)-1)/(C15/C14))/(1+C15/C14) -> 117.3270462 | D21: =ShowFormula -> =C12/(((1+C15/C14)^(C13*C14)-1)/(C15/C14))/(1+C15/C14)

Sheet PV Annuity End
A1: Loan | B1: PV | C1: 190000 | D1: PV positive cuz bank lends it to you (regardless of whether you immediately pay the loan $ out)
A2: Annual Rate | B2: i | C2: 0.0419
A3: Years | B3: x | C3: 15
A4: Periods per Year | B4: n | C4: 12
A5: Period Rate | B5: i/n
A6: Total Periods | B6: x*n
A7: Payment at end of each month | B7: type | C7: ommitted
A8: Period Payment (negative cuz you pay out) | B8: PMT = Loan Payment | D8: =PMT(rate , nper , PV)
B10: Check: | C10: =C1/(((1+C2/C4)^-(C3*C4)-1)/(C2/C4)) -> -1423.56612 | D10: =ShowFormula -> =C1/(((1+C2/C4)^-(C3*C4)-1)/(C2/C4))
A12: Period Payment (positive cuz cash coming into business) | B12: PMT = Cash in From Asset | C12: 10000
A13: Annual Rate | B13: i | C13: 0.15
A14: Years | B14: x | C14: 15
A15: Periods per Year | B15: n | C15: 1
A16: Period Rate | B16: i/n
A17: Total Periods | B17: x*n
A18: Payment at end of each month | B18: type | C18: ommitted | E18: PV negative because it says how much cash you should pay out
A19: How much you should pay for asset | B19: PV = Max Amount To Pay for Asset | D19: =PV(rate , nper , PMT)
B21: Check: | C21: =C12*((1+C13/C15)^-(C14*C15)-1)/(C13/C15) -> -58473.70099 | D21: =ShowFormula -> =C12*((1+C13/C15)^-(C14*C15)-1)/(C13/C15)

Sheet PV Annuity End (an)
A1: Loan | B1: PV | C1: 190000 | D1: PV positive cuz bank lends it to you (regardless of whether you immediately pay the loan $ out)
A2: Annual Rate | B2: i | C2: 0.0419
A3: Years | B3: x | C3: 15
A4: Periods per Year | B4: n | C4: 12
A5: Period Rate | B5: i/n | C5: =C2/C4 -> 0.003491666667
A6: Total Periods | B6: x*n | C6: =C3*C4 -> 180
A7: Payment at end of each month | B7: type | C7: ommitted
A8: Period Payment (negative cuz you pay out) | B8: PMT = Loan Payment | C8: =PMT(C5,C6,C1) -> -1423.56612 | D8: =PMT(rate , nper , PV)
B10: Check: | C10: =C1/(((1+C2/C4)^-(C3*C4)-1)/(C2/C4)) -> -1423.56612 | D10: =ShowFormula -> =C1/(((1+C2/C4)^-(C3*C4)-1)/(C2/C4))
A12: Period Payment (positive cuz cash coming into business) | B12: PMT = Cash in From Asset | C12: 10000
A13: Annual Rate | B13: i | C13: 0.15
A14: Years | B14: x | C14: 15
A15: Periods per Year | B15: n | C15: 1
A16: Period Rate | B16: i/n | C16: =C13/C15 -> 0.15
A17: Total Periods | B17: x*n | C17: 15
A18: Payment at end of each month | B18: type | C18: ommitted | E18: PV negative because it says how much cash you should pay out
A19: How much you should pay for asset | B19: PV = Max Amount To Pay for Asset | C19: =PV(C16,C17,C12) -> -58473.70099 | D19: =PV(rate , nper , PMT)
B21: Check: | C21: =C12*((1+C13/C15)^-(C14*C15)-1)/(C13/C15) -> -58473.70099 | D21: =ShowFormula -> =C12*((1+C13/C15)^-(C14*C15)-1)/(C13/C15)

Sheet PV Annuity Begin
A1: Loan | B1: PV | C1: 190000 | D1: PV positive cuz bank lends it to you (regardless of whether you immediately pay the loan $ out)
A2: Annual Rate | B2: i | C2: 0.0419
A3: Years | B3: x | C3: 15
A4: Periods per Year | B4: n | C4: 12
A5: Period Rate | B5: i/n | C5: =C2/C4 -> 0.003491666667
A6: Total Periods | B6: x*n | C6: =C3*C4 -> 180
A7: Payment at end of each month | B7: type | C7: 1
A8: Period Payment (negative cuz you pay out) | B8: PMT = Loan Payment | D8: =PMT(rate , nper , PV , ,1)
B10: Check: | C10: =C1/(((1+C2/C4)^-(C3*C4)-1)/(C2/C4))/(1+C2/C4) -> -1418.612797 | D10: =ShowFormula -> =C1/(((1+C2/C4)^-(C3*C4)-1)/(C2/C4))/(1+C2/C4)
A12: Period Payment (positive cuz cash coming into business) | B12: PMT = Cash in From Asset | C12: 10000
A13: Annual Rate | B13: i | C13: 0.15
A14: Years | B14: x | C14: 15
A15: Periods per Year | B15: n | C15: 1
A16: Period Rate | B16: i/n | C16: =C13/C15 -> 0.15
A17: Total Periods | B17: x*n | C17: =C14*C15 -> 15
A18: Payment at end of each month | B18: type | C18: 1 | E18: PV negative because it says how much cash you should pay out
A19: How much you should pay for asset | B19: PV = Max Amount To Pay for Asset | D19: =PV(rate , nper , PMT, ,1)
B21: Check: | C21: =C12*((1+C13/C15)^-(C14*C15)-1)/(C13/C15)*(1+C13/C15) -> -67244.75613 | D21: =ShowFormula -> =C12*((1+C13/C15)^-(C14*C15)-1)/(C13/C15)*(1+C13/C15)

Sheet PV Annuity Begin (an)
A1: Loan | B1: PV | C1: 190000 | D1: PV positive cuz bank lends it to you (regardless of whether you immediately pay the loan $ out)
A2: Annual Rate | B2: i | C2: 0.0419
A3: Years | B3: x | C3: 15
A4: Periods per Year | B4: n | C4: 12
A5: Period Rate | B5: i/n | C5: =C2/C4 -> 0.003491666667
A6: Total Periods | B6: x*n | C6: =C3*C4 -> 180
A7: Payment at end of each month | B7: type | C7: 1
A8: Period Payment (negative cuz you pay out) | B8: PMT = Loan Payment | C8: =PMT(C5,C6,C1,,C7) -> -1418.612797 | D8: =PMT(rate , nper , PV , ,1)
B10: Check: | C10: =C1/(((1+C2/C4)^-(C3*C4)-1)/(C2/C4))/(1+C2/C4) -> -1418.612797 | D10: =ShowFormula -> =C1/(((1+C2/C4)^-(C3*C4)-1)/(C2/C4))/(1+C2/C4)
A12: Period Payment (positive cuz cash coming into business) | B12: PMT = Cash in From Asset | C12: 10000
A13: Annual Rate | B13: i | C13: 0.15
A14: Years | B14: x | C14: 15
A15: Periods per Year | B15: n | C15: 1
A16: Period Rate | B16: i/n | C16: =C13/C15 -> 0.15
A17: Total Periods | B17: x*n | C17: 15
A18: Payment at end of each month | B18: type | C18: 1 | E18: PV negative because it says how much cash you should pay out
A19: How much you should pay for asset | B19: PV = Max Amount To Pay for Asset | C19: =PV(C16,C17,C12,,C18) -> -67244.75613 | D19: =PV(rate , nper , PMT, ,1)
B21: Check: | C21: =C12*((1+C13/C15)^-(C14*C15)-1)/(C13/C15)*(1+C13/C15) -> -67244.75613 | D21: =ShowFormula -> =C12*((1+C13/C15)^-(C14*C15)-1)/(C13/C15)*(1+C13/C15)

Sheet PV Annuity End(2)
A1: PV = Amount in Bank on Day You Retire | B1: 395000 | C1: PV
A2: Annual Rate | B2: 0.05 | C2: i
A3: Years Until Money Runs Out | B3: 40 | C3: x
A4: Periods per Year | B4: 12 | C4: n
A5: Period Rate | C5: i/n
A6: Total Periods | C6: x*n
A7: PMT + amount you receive end each month | C7: =PMT(rate,nper,-PV), cuz you deposit in bank
A8: Total Withdrawn | C8: x*n*PMT
A9: Interest | C9: Total Withdrawn - PV

Sheet PV Annuity End(2an)
A1: PV = Amount in Bank on Day You Retire | B1: 395000 | C1: PV
A2: Annual Rate | B2: 0.05 | C2: i
A3: Years Until Money Runs Out | B3: 40 | C3: x
A4: Periods per Year | B4: 12 | C4: n
A5: Period Rate | B5: =B2/B4 -> 0.004166666667 | C5: i/n
A6: Total Periods | B6: =B3*B4 -> 480 | C6: x*n
A7: PMT + amount you receive end each month | B7: =PMT(B5,B6,-B1) -> 1904.676572 | C7: =PMT(rate,nper,-PV), cuz you deposit in bank
A8: Total Withdrawn | B8: =B7*B6 -> 914244.7547 | C8: x*n*PMT
A9: Interest | B9: =B8-B1 -> 519244.7547 | C9: Total Withdrawn - PV

Sheet 1&2 (hidden)
A1: Present Value | B1: PV | C1: -1000
A2: Annual Interest Rate | B2: i | C2: 0.1
A3: Number of Compounding periods per year | B3: n | C3: 2
A4: Years | B4: x | C4: 4
A5: Period Rate | B5: i/n
A6: Total Periods | B6: n*x | E6: Check
A7: Future Value | B7: FV
A9: Future Value | B9: FV | C9: 1477.455444
A10: Annual Interest Rate | B10: i | C10: 0.1
A11: Number of Compounding periods per year | B11: n | C11: 2
A12: Years | B12: x | C12: 4
A13: Period Rate | B13: i/n
A14: Total Periods | B14: n*x | E14: Check
A15: Present Value | B15: PV

Sheet 1&2 (an) (hidden)
A1: Present Value | B1: PV | C1: -1000
A2: Annual Interest Rate | B2: i | C2: 0.1
A3: Number of Compounding periods per year | B3: n | C3: 2
A4: Years | B4: x | C4: 4
A5: Period Rate | B5: i/n | C5: =C2/C3 -> 0.05
A6: Total Periods | B6: n*x | C6: =C3*C4 -> 8 | E6: Check
A7: Future Value | B7: FV | C7: =FV(C5,C6,,C1) -> 1477.455444 | E7: =C1*(1+C5)^C6 -> -1477.455444
A9: Future Value | B9: FV | C9: 1477.455444
A10: Annual Interest Rate | B10: i | C10: 0.1
A11: Number of Compounding periods per year | B11: n | C11: 2
A12: Years | B12: x | C12: 4
A13: Period Rate | B13: i/n | C13: =C10/C11 -> 0.05
A14: Total Periods | B14: n*x | C14: =C11*C12 -> 8 | E14: Check
A15: Present Value | B15: PV | C15: =PV(C13,C14,,C9) -> -1000 | E15: =C9/(1+C13)^C14 -> 1000

Sheet 3 (hidden)
A1: Annual Interest Rate | B1: i | C1: 0.1
A2: Number of Compounding periods per year | B2: n | C2: 2
A3: Years | B3: x | C3: 5
A4: Period Rate | B4: i/n
A5: Total Periods | B5: n*x
A6: Future Value | B6: FV
A8: Time | B8: Periods Remaining | C8: Cash Flow (Individual PV amount) | D8: Individual FV of each amount | F8: Check
A9: Time 0 | B9: 10 | C9: -1000
A10: Time 1 | B10: 9 | C10: 0
A11: Time 2 | B11: 8 | C11: 0
A12: Time 3 | B12: 7 | C12: 0
A13: Time 4 | B13: 6 | C13: -2000
A14: Time 5 | B14: 5 | C14: 0
A15: Time 6 | B15: 4 | C15: -6000
A16: Time 7 | B16: 3 | C16: 0
A17: Time 8 | B17: 2 | C17: 0
A18: Time 9 | B18: 1 | C18: 0
A19: Time 10 | B19: 0 | C19: 0
J20: Check
C22: You can put the zeros or not

Sheet 3 (an) (hidden)
A1: Annual Interest Rate | B1: i | C1: 0.1
A2: Number of Compounding periods per year | B2: n | C2: 2
A3: Years | B3: x | C3: 5
A4: Period Rate | B4: i/n | C4: =C1/C2 -> 0.05
A5: Total Periods | B5: n*x | C5: =C3*C2 -> 10
A6: Future Value | B6: FV | C6: =SUM(D9:D19) -> 11602.12341
A8: Time | B8: Periods Remaining | C8: Cash Flow (Individual PV amount) | D8: Individual FV of each amount | F8: Check
A9: Time 0 | B9: 10 | C9: -1000 | D9: =FV($C$4,B9,,C9) -> 1628.894627 | F9: =(1+$C$4)^B9*-C9 -> 1628.894627
A10: Time 1 | B10: 9 | C10: 0 | D10: =FV($C$4,B10,,C10) -> 0 | F10: 0
A11: Time 2 | B11: 8 | C11: 0 | D11: 0 | F11: 0
A12: Time 3 | B12: 7 | C12: 0 | D12: 0 | F12: 0
A13: Time 4 | B13: 6 | C13: -2000 | D13: 2680.191281 | F13: 2680.191281
A14: Time 5 | B14: 5 | C14: 0 | D14: 0 | F14: 0
A15: Time 6 | B15: 4 | C15: -6000 | D15: 7293.0375 | F15: 7293.0375
A16: Time 7 | B16: 3 | C16: 0 | D16: 0 | F16: 0
A17: Time 8 | B17: 2 | C17: 0 | D17: 0 | F17: 0
A18: Time 9 | B18: 1 | C18: 0 | D18: 0 | F18: 0
A19: Time 10 | B19: 0 | C19: 0 | D19: 0 | F19: 0
J20: Check
F21: =SUM(F9:F19) -> 11602.12341 | J21: =SUMPRODUCT((NPV(C4,-C10:C19)-C9)*(1+C4)^C5) -> 11602.12341
C22: You can put the zeros or not

Sheet 4 (hidden)
A1: Annual Interest Rate | B1: i | C1: 0.1 | D1: Discount Rate
A2: Number of Compounding periods per year | B2: n | C2: 2
A3: Years | B3: x | C3: 5
A4: Period Rate | B4: i/n
A5: Total Periods | B5: n*x | J5: Check:
A6: Future Value | B6: PV
A8: Time | B8: Periods | C8: Cash Flow (Individual FV amount) | D8: Individual PV of each amount | F8: Check
A9: Time 0 | B9: 0
A10: Time 1 | B10: 1
A11: Time 2 | B11: 2
A12: Time 3 | B12: 3
A13: Time 4 | B13: 4 | C13: 1000
A14: Time 5 | B14: 5
A15: Time 6 | B15: 6 | C15: 2000
A16: Time 7 | B16: 7
A17: Time 8 | B17: 8
A18: Time 9 | B18: 9
A19: Time 10 | B19: 10 | C19: 6000
C22: You can put the zeros or not

Sheet 4 (an) (hidden)
A1: Annual Interest Rate | B1: i | C1: 0.1 | D1: Discount Rate
A2: Number of Compounding periods per year | B2: n | C2: 2
A3: Years | B3: x | C3: 5
A4: Period Rate | B4: i/n | C4: =C1/C2 -> 0.05
A5: Total Periods | B5: n*x | C5: =C3*C2 -> 10 | J5: Check:
A6: Future Value | B6: PV | C6: =SUM(D9:D19) -> -5998.612789 | J6: =SUMPRODUCT(NPV(C4,-C10:C19)) -> -5998.612789
A8: Time | B8: Periods | C8: Cash Flow (Individual FV amount) | D8: Individual PV of each amount | F8: Check
A9: Time 0 | B9: 0 | D9: =PV($C$4,B9,,C9) -> 0 | F9: =-C9/(1+$C$4)^B9 -> 0
A10: Time 1 | B10: 1 | D10: =PV($C$4,B10,,C10) -> 0 | F10: =-C10/(1+$C$4)^B10 -> 0
A11: Time 2 | B11: 2 | D11: 0 | F11: 0
A12: Time 3 | B12: 3 | D12: 0 | F12: 0
A13: Time 4 | B13: 4 | C13: 1000 | D13: -822.7024748 | F13: -822.7024748
A14: Time 5 | B14: 5 | D14: 0 | F14: 0
A15: Time 6 | B15: 6 | C15: 2000 | D15: -1492.430793 | F15: -1492.430793
A16: Time 7 | B16: 7 | D16: 0 | F16: 0
A17: Time 8 | B17: 8 | D17: 0 | F17: 0
A18: Time 9 | B18: 9 | D18: 0 | F18: 0
A19: Time 10 | B19: 10 | C19: 6000 | D19: -3683.479521 | F19: -3683.479521
F21: =SUM(F9:F19) -> -5998.612789
C22: You can put the zeros or not

Sheet xxxx (hidden)
A1: Cash Flows and the NPV function
A2: Interest Rate = Discount Rate = i = APR = | B2: 0.08
A3: n = | B3: 1
A5: Method 1 | F5: Method 2
A6: Time | B6: Cash Flow (out (+) and in (-) of wallet) | C6: Periods Left | D6: PV | F6: Cash Flows for NPV are 1) Into Investment is +, 2) Out of Investment is - | H6: NPV | J6: Key is to not include Time 0 value. From Excel: "Value1, value2, ... must be equally spaced in time and occur at the end of each period." Also: Cash Flows are Opposite to other Financial Functions. If you want to include time 0 value, you must adding back in at the end. Think of it as into the investment is + and out of the investment is -.
A7: 0 | B7: -2000 | C7: 0 | D7: =PV($B$2,C7,,B7) -> 2000 | F7: =-B7 -> 2000 | H7: =NPV(B2,F8:F16)+F7 -> 629.5299645
A8: 1 | C8: 1 | D8: 0 | F8: 0
A9: 2 | B9: -2000 | C9: 2 | D9: 1714.677641 | F9: 2000
A10: 3 | B10: 1000 | C10: 3 | D10: -793.832241 | F10: -1000
A11: 4 | B11: 1000 | C11: 4 | D11: -735.0298528 | F11: -1000
A12: 5 | B12: -2000 | C12: 5 | D12: 1361.166394 | F12: 2000
A13: 6 | C13: 6 | D13: 0 | F13: 0
A14: 7 | B14: 5000 | C14: 7 | D14: -2917.451976 | F14: -5000
A15: 8 | C15: 8 | D15: 0 | F15: 0
A16: Totals | C16: PV | D16: =SUM(D7:D15) -> 629.5299645
C18: -1

Sheet HW ==>>
A1: 11.1 | B1: ='11(1)'!A3&", "&'11(1)'!A4&", "&'11(1)'!A5&", "&'11(1)'!A6&", "&'11(1)'!A10&", "&'11(1)'!A11&", "&'11(1)'!A12&", "&'11(1)'!A13 -> 3, 4, 5, 6, 9, 10, 11, 12
A2: 11.2 | B2: ='11(2)'!A3&", "&'11(2)'!A4&", "&'11(2)'!A5&", "&'11(2)'!A6&", "&'11(2)'!A7&", "&'11(2)'!A8 -> 1, 2, 3, 4, 5, 6

Sheet 11(1)
B1: Perodic Payment | C1: Number Compouning Peirods per Year | D1: Annual Rate | E1: Years | F1: End or Beg? | G1: Period Rate | H1: Total Periods | I1: Future Value | J1: Total Paid | K1: Interest
B2: PMT | C2: n | D2: i | E2: x | F2: type | G2: i/n | H2: x*n | I2: FV | J2: PMT*n*x | K2: FV - PV
A3: 3 | B3: 7500 | C3: 2 | D3: 0.06 | E3: 10 | F3: 0 | G3: =D3/C3 -> 0.03 | H3: =E3*C3 -> 20 | I3: =ROUND(FV(G3,H3,-B3,,F3),2) -> 201527.81 | J3: =ROUND(B3*C3*E3,2) -> 150000 | K3: =I3-J3 -> 51527.81
A4: 4 | B4: 9200 | C4: 2 | D4: 0.08 | E4: 5 | F4: 0 | G4: 0.04 | H4: 10 | I4: =ROUND(FV(G4,H4,-B4,,F4),2) -> 110456.19 | J4: =ROUND(B4*C4*E4,2) -> 92000 | K4: 18456.19
A5: 5 | B5: 3500 | C5: 4 | D5: 0.1 | E5: 7 | F5: 0 | G5: 0.025 | H5: 28 | I5: 139509.3 | J5: 98000 | K5: 41509.3
A6: 6 | B6: 6900 | C6: 4 | D6: 0.04 | E6: 4 | F6: 0 | G6: 0.01 | H6: 16 | I6: 119079.26 | J6: 110400 | K6: 8679.26
B8: Perodic Payment | C8: Number Compouning Peirods per Year | D8: Annual Rate | E8: Years | F8: End or Beg? | G8: Period Rate | H8: Total Periods | I8: Future Value | J8: Total Paid | K8: Interest
B9: PMT | C9: n | D9: i | E9: x | F9: type | G9: i/n | H9: x*n | I9: FV | J9: PMT*n*x | K9: FV - PV
A10: 9 | B10: 9500 | C10: 2 | D10: 0.04 | E10: 9 | F10: 1 | G10: =D10/C10 -> 0.02 | H10: =E10*C10 -> 18 | I10: =ROUND(FV(G10,H10,-B10,,F10),2) -> 207485.31 | J10: =ROUND(B10*C10*E10,2) -> 171000 | K10: =I10-J10 -> 36485.31
A11: 10 | B11: 1800 | C11: 2 | D11: 0.05 | E11: 6 | F11: 1 | G11: 0.025 | H11: 12 | I11: =ROUND(FV(G11,H11,-B11,,F11),2) -> 25452.8 | J11: =ROUND(B11*C11*E11,2) -> 21600 | K11: 3852.8
A12: 11 | B12: 3800 | C12: 4 | D12: 0.08 | E12: 3 | F12: 1 | G12: 0.02 | H12: 12 | I12: 51985.26 | J12: 45600 | K12: 6385.26
A13: 12 | B13: 10200 | C13: 4 | D13: 0.1 | E13: 5 | F13: 1 | G13: 0.025 | H13: 20 | I13: 267069.4 | J13: 204000 | K13: 63069.4

Sheet 11(2)
B1: Perodic Payment | C1: Number Compouning Peirods per Year | D1: Years | E1: Annual Rate | F1: End or Beg? | G1: Period Rate | H1: Total Periods | I1: Present Value
B2: PMT | C2: n | D2: x | E2: i | F2: type | G2: i/n | H2: x*n | I2: PV
A3: 1 | B3: 1800 | C3: 1 | D3: 18 | E3: 0.1 | F3: 0 | G3: =E3/C3 -> 0.1 | H3: =D3*C3 -> 18 | I3: =ROUND(PV(G3,H3,-B3,,F3),2) -> 14762.54
A4: 2 | B4: 4100 | C4: 1 | D4: 7 | E4: 0.06 | F4: 0 | G4: 0.06 | H4: 7 | I4: =ROUND(PV(G4,H4,-B4,,F4),2) -> 22887.76
A5: 3 | B5: 2000 | C5: 2 | D5: 12 | E5: 0.08 | F5: 0 | G5: 0.04 | H5: 24 | I5: 30493.93
A6: 4 | B6: 17000 | C6: 2 | D6: 14 | E6: 0.05 | F6: 0 | G6: 0.025 | H6: 28 | I6: 339403.11
A7: 5 | B7: 894 | C7: 4 | D7: 6 | E7: 0.04 | F7: 0 | G7: 0.01 | H7: 24 | I7: 18991.59
A8: 6 | B8: 7500 | C8: 4 | D8: 5 | E8: 0.1 | F8: 0 | G8: 0.025 | H8: 20 | I8: 116918.72
